[Event "Late-Titled-Tuesday-Blitz-September-26-2023"]
[Site "Chess.com"]
[Date "2023.09.26"]
[Round "7"]
[White "wild3000"]
[Black "Dacean99"]
[Result "1-0"]
[WhiteElo "2360"]
[BlackElo "2544"]
[TimeControl "180+1"]
[EndTime "15:11:20 PDT"]
[Termination "wild3000 won by resignation"]

1. d4 {[%clk 0:03:00]} 1... Nf6 {[%clk 0:02:58.9]} 2. Nf3 {[%clk 0:03:00.5]}
2... c5 {[%clk 0:02:58.8]} 3. e3 {[%clk 0:03:00.8]} 3... d5 {[%clk 0:02:57.3]}
4. Be2 {[%clk 0:03:00.8]} 4... Nc6 {[%clk 0:02:57.3]} 5. O-O {[%clk 0:03:00.8]}
5... Bg4 {[%clk 0:02:56.8]} 6. h3 {[%clk 0:02:58.5]} 6... Bh5 {[%clk 0:02:56.6]}
7. c4 {[%clk 0:02:56.1]} 7... e6 {[%clk 0:02:55.9]} 8. cxd5 {[%clk 0:02:55.4]}
8... exd5 {[%clk 0:02:56]} 9. Nc3 {[%clk 0:02:55.5]} 9... Be7 {[%clk 0:02:45.6]}
10. dxc5 {[%clk 0:02:55.3]} 10... Bxc5 {[%clk 0:02:46.5]} 11. Nd4 {[%clk
0:02:52.5]} 11... Bg6 {[%clk 0:02:44.2]} 12. Bf3 {[%clk 0:02:40.6]} 12... O-O
{[%clk 0:02:40]} 13. Nb3 {[%clk 0:02:37.8]} 13... Bd6 {[%clk 0:02:34.3]} 14.
Nxd5 {[%clk 0:02:35.4]} 14... Nxd5 {[%clk 0:02:30.3]} 15. Bxd5 {[%clk
0:02:26.6]} 15... Rc8 {[%clk 0:02:28.3]} 16. e4 {[%clk 0:02:24.3]} 16... Qe7
{[%clk 0:02:25]} 17. Re1 {[%clk 0:02:18.5]} 17... Rfd8 {[%clk 0:02:23.3]} 18.
Qg4 {[%clk 0:02:10.1]} 18... Bb4 {[%clk 0:02:17.7]} 19. Bg5 {[%clk 0:02:08.2]}
19... Qe5 {[%clk 0:02:13.1]} 20. Bxd8 {[%clk 0:02:06.2]} 20... Bxe1 {[%clk
0:02:12.2]} 21. Qxc8 {[%clk 0:02:02.9]} 21... Bxf2+ {[%clk 0:02:09.8]} 22. Kxf2
{[%clk 0:01:57.6]} 22... Qxb2+ {[%clk 0:02:08.9]} 23. Kg1 {[%clk 0:01:54.1]}
23... Bf5 {[%clk 0:02:00.7]} 24. Bf6+ {[%clk 0:01:35.5]} 24... Bxc8 {[%clk
0:01:58.7]} 25. Bxb2 {[%clk 0:01:35.3]} 25... Nb4 {[%clk 0:01:59.6]} 26. Bc4
{[%clk 0:01:33.4]} 26... a6 {[%clk 0:01:56.7]} 27. Bc3 {[%clk 0:01:29.2]} 27...
Nc6 {[%clk 0:01:55.2]} 28. Bd5 {[%clk 0:01:28.5]} 28... Ne7 {[%clk 0:01:54.8]}
29. Rc1 {[%clk 0:01:27.7]} 29... Bd7 {[%clk 0:01:53.3]} 30. Nc5 {[%clk
0:01:23.6]} 30... Bb5 {[%clk 0:01:51.7]} 31. Bxb7 {[%clk 0:01:21.6]} 1-0

[Event "Late-Titled-Tuesday-Blitz-September-26-2023"]
[Site "Chess.com"]
[Date "2023.09.26"]
[Round "7"]
[White "Jospem"]
[Black "Mikhail_Bryakin"]
[Result "1-0"]
[WhiteElo "2997"]
[BlackElo "2854"]
[TimeControl "180+1"]
[EndTime "15:11:23 PDT"]
[Termination "Jospem won by resignation"]

1. e4 {[%clk 0:03:00.9]} 1... e6 {[%clk 0:02:56.3]} 2. d4 {[%clk 0:03:01.1]}
2... d5 {[%clk 0:02:55.2]} 3. Nd2 {[%clk 0:03:01.3]} 3... Nc6 {[%clk 0:02:52.5]}
4. Ngf3 {[%clk 0:03:00.6]} 4... dxe4 {[%clk 0:02:47.6]} 5. Nxe4 {[%clk
0:03:01.5]} 5... Nf6 {[%clk 0:02:48.2]} 6. Nxf6+ {[%clk 0:02:53.9]} 6... gxf6
{[%clk 0:02:45.9]} 7. c3 {[%clk 0:02:53.7]} 7... Bd6 {[%clk 0:02:46]} 8. g3
{[%clk 0:02:52.8]} 8... Bd7 {[%clk 0:02:45.8]} 9. Bg2 {[%clk 0:02:53.2]} 9...
Qe7 {[%clk 0:02:46.4]} 10. O-O {[%clk 0:02:53.7]} 10... O-O {[%clk 0:02:43]} 11.
Re1 {[%clk 0:02:51.6]} 11... Kh8 {[%clk 0:02:31.8]} 12. c4 {[%clk 0:02:41.6]}
12... Qd8 {[%clk 0:02:27.8]} 13. b3 {[%clk 0:02:39.8]} 13... Bb4 {[%clk
0:02:19.1]} 14. Bd2 {[%clk 0:02:38.8]} 14... Bxd2 {[%clk 0:02:18.8]} 15. Qxd2
{[%clk 0:02:39.7]} 15... Ne7 {[%clk 0:02:18.2]} 16. Qc3 {[%clk 0:02:36]} 16...
Ng6 {[%clk 0:02:17.5]} 17. Rad1 {[%clk 0:02:35.2]} 17... c6 {[%clk 0:01:51.9]}
18. Nd2 {[%clk 0:02:30.9]} 18... Kg8 {[%clk 0:01:43.5]} 19. Ne4 {[%clk
0:02:25.9]} 19... f5 {[%clk 0:01:42.9]} 20. Nd6 {[%clk 0:02:23]} 20... Qc7
{[%clk 0:01:43.4]} 21. c5 {[%clk 0:02:23.1]} 21... Rad8 {[%clk 0:01:43.1]} 22.
h4 {[%clk 0:02:16.1]} 22... Bc8 {[%clk 0:01:42.8]} 23. Qe3 {[%clk 0:02:09.7]}
23... Kh8 {[%clk 0:01:19.3]} 24. h5 {[%clk 0:01:51.7]} 24... Ne7 {[%clk
0:01:19.5]} 25. Qe5+ {[%clk 0:01:51.6]} 25... Kg8 {[%clk 0:01:19.6]} 26. Nxf5
{[%clk 0:01:40.9]} 1-0

[Event "Late-Titled-Tuesday-Blitz-September-26-2023"]
[Site "Chess.com"]
[Date "2023.09.26"]
[Round "7"]
[White "GoltsevDmitry2000"]
[Black "mitrabhaa"]
[Result "0-1"]
[WhiteElo "2606"]
[BlackElo "2834"]
[TimeControl "180+1"]
[EndTime "15:11:26 PDT"]
[Termination "mitrabhaa won by resignation"]

1. e4 {[%clk 0:02:56.8]} 1... c6 {[%clk 0:03:00]} 2. d4 {[%clk 0:02:54.8]} 2...
d5 {[%clk 0:03:00.2]} 3. Nc3 {[%clk 0:02:55.7]} 3... dxe4 {[%clk 0:03:00.2]} 4.
Nxe4 {[%clk 0:02:56.6]} 4... Nf6 {[%clk 0:03:00.1]} 5. Ng3 {[%clk 0:02:56.2]}
5... h5 {[%clk 0:03:00.1]} 6. h4 {[%clk 0:02:55.9]} 6... Bg4 {[%clk 0:02:59.1]}
7. Be2 {[%clk 0:02:55.5]} 7... Nbd7 {[%clk 0:02:58.3]} 8. f3 {[%clk 0:02:51.7]}
8... Qc7 {[%clk 0:02:56.1]} 9. Kf2 {[%clk 0:02:48.2]} 9... Be6 {[%clk
0:02:55.5]} 10. Nh3 {[%clk 0:02:47.9]} 10... Bxh3 {[%clk 0:02:51.6]} 11. Rxh3
{[%clk 0:02:47.6]} 11... e6 {[%clk 0:02:50.3]} 12. Bd3 {[%clk 0:02:36.2]} 12...
c5 {[%clk 0:02:45.5]} 13. c3 {[%clk 0:02:21.1]} 13... cxd4 {[%clk 0:02:40.7]}
14. cxd4 {[%clk 0:02:22]} 14... Bd6 {[%clk 0:02:41.3]} 15. Ne2 {[%clk
0:02:18.4]} 15... O-O {[%clk 0:02:41.5]} 16. Bg5 {[%clk 0:02:14.4]} 16... e5
{[%clk 0:02:41]} 17. Rc1 {[%clk 0:02:12.9]} 17... Qa5 {[%clk 0:02:40.5]} 18. a3
{[%clk 0:01:34]} 18... exd4 {[%clk 0:02:37.1]} 19. Nxd4 {[%clk 0:01:33.6]} 19...
Bc5 {[%clk 0:02:34.2]} 20. Be3 {[%clk 0:01:33.4]} 20... Qb6 {[%clk 0:02:33.8]}
21. Be2 {[%clk 0:01:04.1]} 21... Rac8 {[%clk 0:02:33]} 22. Rb1 {[%clk
0:00:56.7]} 22... Nd5 {[%clk 0:02:25.7]} 23. b4 {[%clk 0:00:56.6]} 23... Nxe3
{[%clk 0:02:25.9]} 24. Kxe3 {[%clk 0:00:44.9]} 24... Bxd4+ {[%clk 0:02:22.4]}
0-1

[Event "Late-Titled-Tuesday-Blitz-September-26-2023"]
[Site "Chess.com"]
[Date "2023.09.26"]
[Round "7"]
[White "infinitegiantkiller"]
[Black "YouShallNotPass001"]
[Result "0-1"]
[WhiteElo "2433"]
[BlackElo "2352"]
[TimeControl "180+1"]
[EndTime "15:11:44 PDT"]
[Termination "YouShallNotPass001 won by checkmate"]

1. Nf3 {[%clk 0:02:59.7]} 1... Nf6 {[%clk 0:02:58.6]} 2. g3 {[%clk 0:03:00.6]}
2... e6 {[%clk 0:02:58.9]} 3. Bg2 {[%clk 0:03:01.4]} 3... d5 {[%clk 0:02:59.6]}
4. O-O {[%clk 0:03:02.2]} 4... Be7 {[%clk 0:03:00.1]} 5. b3 {[%clk 0:03:02.9]}
5... O-O {[%clk 0:03:00.3]} 6. Bb2 {[%clk 0:03:03.8]} 6... b5 {[%clk 0:03:00.6]}
7. d4 {[%clk 0:03:04.3]} 7... c5 {[%clk 0:03:00.3]} 8. Nbd2 {[%clk 0:03:05.2]}
8... Nbd7 {[%clk 0:02:58.8]} 9. a4 {[%clk 0:03:05.2]} 9... bxa4 {[%clk
0:02:57.9]} 10. Rxa4 {[%clk 0:03:04.8]} 10... Bb7 {[%clk 0:02:57]} 11. c4 {[%clk
0:03:03.4]} 11... Nb6 {[%clk 0:02:56]} 12. Ra1 {[%clk 0:03:01.2]} 12... dxc4
{[%clk 0:02:56.5]} 13. Nxc4 {[%clk 0:03:00.7]} 13... Nxc4 {[%clk 0:02:55.6]} 14.
bxc4 {[%clk 0:03:01.6]} 14... cxd4 {[%clk 0:02:56]} 15. Nxd4 {[%clk 0:03:01.9]}
15... Bxg2 {[%clk 0:02:54.7]} 16. Kxg2 {[%clk 0:03:02.8]} 16... Qc7 {[%clk
0:02:51.9]} 17. Qa4 {[%clk 0:02:50.8]} 17... Rfc8 {[%clk 0:02:51]} 18. Rfc1
{[%clk 0:02:50.2]} 18... Qb7+ {[%clk 0:02:47.5]} 19. Kg1 {[%clk 0:02:41.1]}
19... Qxb2 {[%clk 0:02:44.6]} 20. Nc6 {[%clk 0:02:41.1]} 20... Bf8 {[%clk
0:02:40.5]} 21. Nxa7 {[%clk 0:02:41.1]} 21... Rc7 {[%clk 0:02:33.3]} 22. Rab1
{[%clk 0:02:28.9]} 22... Rcxa7 {[%clk 0:02:27.2]} 23. Rxb2 {[%clk 0:02:27.2]}
23... Rxa4 {[%clk 0:02:26.3]} 24. c5 {[%clk 0:02:28.1]} 24... Rc8 {[%clk
0:02:25.4]} 25. c6 {[%clk 0:02:12.2]} 25... Ra6 {[%clk 0:02:19.4]} 26. c7 {[%clk
0:02:00.5]} 26... Ra7 {[%clk 0:02:16.1]} 27. Rb8 {[%clk 0:01:39.2]} 27... Rcxc7
{[%clk 0:02:14.8]} 28. Rd1 {[%clk 0:00:53.3]} 28... h6 {[%clk 0:02:11.9]} 29.
Rdd8 {[%clk 0:00:48.7]} 29... Nh7 {[%clk 0:02:12.1]} 30. h4 {[%clk 0:00:46.7]}
30... Ra2 {[%clk 0:02:11.7]} 31. e3 {[%clk 0:00:46.4]} 31... Rcc2 {[%clk
0:02:12]} 32. Kg2 {[%clk 0:00:44.6]} 32... Rxf2+ {[%clk 0:02:11.7]} 33. Kh3
{[%clk 0:00:44.8]} 33... h5 {[%clk 0:02:11]} 34. g4 {[%clk 0:00:42.2]} 34...
Rf3# {[%clk 0:02:09.4]} 0-1

[Event "Late-Titled-Tuesday-Blitz-September-26-2023"]
[Site "Chess.com"]
[Date "2023.09.26"]
[Round "7"]
[White "Alexei_Gubajdullin"]
[Black "MagnusCarlsen"]
[Result "0-1"]
[WhiteElo "2732"]
[BlackElo "3288"]
[TimeControl "180+1"]
[EndTime "15:11:55 PDT"]
[Termination "MagnusCarlsen won by resignation"]

1. d4 {[%clk 0:03:00]} 1... d5 {[%clk 0:02:58.3]} 2. Nf3 {[%clk 0:02:59.9]} 2...
Bf5 {[%clk 0:02:57.8]} 3. Bf4 {[%clk 0:02:59.4]} 3... e6 {[%clk 0:02:57.2]} 4.
e3 {[%clk 0:02:59.4]} 4... Bd6 {[%clk 0:02:57.8]} 5. Bg3 {[%clk 0:02:54.2]} 5...
Nf6 {[%clk 0:02:57.4]} 6. Nbd2 {[%clk 0:02:54]} 6... Bxg3 {[%clk 0:02:56.5]} 7.
hxg3 {[%clk 0:02:54]} 7... h6 {[%clk 0:02:57.2]} 8. Bd3 {[%clk 0:02:53.9]} 8...
Bxd3 {[%clk 0:02:57]} 9. cxd3 {[%clk 0:02:53.8]} 9... Nbd7 {[%clk 0:02:57.4]}
10. O-O {[%clk 0:02:53]} 10... O-O {[%clk 0:02:57.1]} 11. Qb3 {[%clk 0:02:50.2]}
11... Rb8 {[%clk 0:02:54.3]} 12. Rfc1 {[%clk 0:02:48.2]} 12... c6 {[%clk
0:02:54.3]} 13. Qa3 {[%clk 0:02:47.2]} 13... a6 {[%clk 0:02:54.5]} 14. b4 {[%clk
0:02:46.7]} 14... Re8 {[%clk 0:02:53.6]} 15. Nb3 {[%clk 0:02:45.8]} 15... e5
{[%clk 0:02:53.3]} 16. Nc5 {[%clk 0:02:38.4]} 16... e4 {[%clk 0:02:46.2]} 17.
dxe4 {[%clk 0:02:34.5]} 17... Nxe4 {[%clk 0:02:46.7]} 18. Qd3 {[%clk 0:02:27.9]}
18... Nd6 {[%clk 0:02:46.7]} 19. Nd2 {[%clk 0:02:23.8]} 19... Nf6 {[%clk
0:02:43.7]} 20. a4 {[%clk 0:02:22.7]} 20... Ng4 {[%clk 0:02:43.9]} 21. Nf3
{[%clk 0:02:17.2]} 21... Qe7 {[%clk 0:02:31.2]} 22. Rc2 {[%clk 0:02:13.5]} 22...
Rbd8 {[%clk 0:02:30.3]} 23. Rac1 {[%clk 0:02:13]} 23... g6 {[%clk 0:02:26]} 24.
Nh2 {[%clk 0:02:05.7]} 24... h5 {[%clk 0:02:25.9]} 25. Nxg4 {[%clk 0:01:56.5]}
25... hxg4 {[%clk 0:02:26.8]} 26. Qe2 {[%clk 0:01:56.4]} 26... Qg5 {[%clk
0:02:26.6]} 27. Kf1 {[%clk 0:01:51.7]} 27... Kg7 {[%clk 0:02:26.1]} 28. Ke1
{[%clk 0:01:51.5]} 28... Rh8 {[%clk 0:02:25.5]} 29. Kd2 {[%clk 0:01:50.3]} 29...
b6 {[%clk 0:02:24.8]} 30. Nxa6 {[%clk 0:01:41.3]} 30... Ne4+ {[%clk 0:02:25.1]}
31. Kd3 {[%clk 0:01:39.1]} 31... Qf5 {[%clk 0:02:25.4]} 32. f3 {[%clk
0:01:02.2]} 32... Nxg3+ {[%clk 0:02:18.7]} 33. e4 {[%clk 0:01:02.2]} 33... dxe4+
{[%clk 0:02:19.6]} 34. fxe4 {[%clk 0:01:02.3]} 34... Rxd4+ {[%clk 0:02:20.2]}
35. Kxd4 {[%clk 0:00:59.2]} 35... Nxe2+ {[%clk 0:02:18.7]} 36. Rxe2 {[%clk
0:00:58.3]} 36... Rd8+ {[%clk 0:02:17]} 37. Kc3 {[%clk 0:00:53]} 37... Qe5+
{[%clk 0:02:17]} 38. Kc2 {[%clk 0:00:49.8]} 38... Qd4 {[%clk 0:02:17.1]} 39. Kb1
{[%clk 0:00:43.5]} 39... Qd3+ {[%clk 0:02:16.9]} 40. Rec2 {[%clk 0:00:42.7]}
40... Qxa6 {[%clk 0:02:17.5]} 0-1

[Event "Late-Titled-Tuesday-Blitz-September-26-2023"]
[Site "Chess.com"]
[Date "2023.09.26"]
[Round "7"]
[White "artin10862"]
[Black "RichardLeyvaP"]
[Result "1-0"]
[WhiteElo "2882"]
[BlackElo "2643"]
[TimeControl "180+1"]
[EndTime "15:12:14 PDT"]
[Termination "artin10862 won by resignation"]

1. e4 {[%clk 0:03:00.9]} 1... e5 {[%clk 0:02:55.7]} 2. Nf3 {[%clk 0:02:58.7]}
2... Nc6 {[%clk 0:02:46.9]} 3. c3 {[%clk 0:02:57.6]} 3... Nf6 {[%clk 0:02:45.5]}
4. d4 {[%clk 0:02:40.2]} 4... d6 {[%clk 0:02:40.7]} 5. Bc4 {[%clk 0:02:17.4]}
5... Be7 {[%clk 0:02:39.3]} 6. O-O {[%clk 0:02:14.3]} 6... O-O {[%clk
0:02:30.4]} 7. Re1 {[%clk 0:02:11.6]} 7... Bg4 {[%clk 0:02:23.8]} 8. d5 {[%clk
0:01:48.8]} 8... Nb8 {[%clk 0:02:23]} 9. h3 {[%clk 0:01:48.5]} 9... Bc8 {[%clk
0:02:22.1]} 10. Bf1 {[%clk 0:01:46]} 10... c6 {[%clk 0:02:22.4]} 11. c4 {[%clk
0:01:45.9]} 11... a5 {[%clk 0:02:21.7]} 12. Nc3 {[%clk 0:01:41.1]} 12... Nbd7
{[%clk 0:02:21.8]} 13. Rb1 {[%clk 0:01:34.5]} 13... Re8 {[%clk 0:02:21.4]} 14.
a3 {[%clk 0:01:34.2]} 14... Bf8 {[%clk 0:02:15.2]} 15. b4 {[%clk 0:01:33.6]}
15... axb4 {[%clk 0:02:15.3]} 16. axb4 {[%clk 0:01:33.2]} 16... c5 {[%clk
0:02:14.6]} 17. Be3 {[%clk 0:01:28.7]} 17... cxb4 {[%clk 0:02:12.5]} 18. Rxb4
{[%clk 0:01:29.6]} 18... h6 {[%clk 0:02:03.3]} 19. Ra4 {[%clk 0:01:26.8]} 19...
Rxa4 {[%clk 0:01:48.3]} 20. Qxa4 {[%clk 0:01:25.1]} 20... Qc7 {[%clk 0:01:48.5]}
21. Nb5 {[%clk 0:01:16.9]} 21... Qb8 {[%clk 0:01:48.6]} 22. Ba7 {[%clk
0:01:13.9]} 1-0

[Event "Late-Titled-Tuesday-Blitz-September-26-2023"]
[Site "Chess.com"]
[Date "2023.09.26"]
[Round "7"]
[White "Fan_Of_Chucky"]
[Black "Hikaru"]
[Result "0-1"]
[WhiteElo "2521"]
[BlackElo "3175"]
[TimeControl "180+1"]
[EndTime "15:12:16 PDT"]
[Termination "Hikaru won by resignation"]

1. d4 {[%clk 0:03:00.9]} 1... a6 {[%clk 0:02:54.6]} 2. c4 {[%clk 0:02:58.5]}
2... c5 {[%clk 0:02:36.2]} 3. d5 {[%clk 0:02:53.8]} 3... Nf6 {[%clk 0:02:34.6]}
4. Nc3 {[%clk 0:02:52]} 4... d6 {[%clk 0:02:35]} 5. e4 {[%clk 0:02:51.5]} 5...
g6 {[%clk 0:02:35.5]} 6. h3 {[%clk 0:02:47.4]} 6... e6 {[%clk 0:02:35.6]} 7. Be3
{[%clk 0:02:46.8]} 7... exd5 {[%clk 0:02:35.6]} 8. exd5 {[%clk 0:02:47.7]} 8...
Bg7 {[%clk 0:02:35.8]} 9. Nf3 {[%clk 0:02:48.3]} 9... O-O {[%clk 0:02:36.1]} 10.
Bd3 {[%clk 0:02:49]} 10... Re8 {[%clk 0:02:36.6]} 11. O-O {[%clk 0:02:43.6]}
11... Rxe3 {[%clk 0:02:36]} 12. fxe3 {[%clk 0:02:44.5]} 12... Qe7 {[%clk
0:02:35.9]} 13. e4 {[%clk 0:02:40.1]} 13... Nfd7 {[%clk 0:02:34]} 14. Qd2 {[%clk
0:02:32.4]} 14... Ne5 {[%clk 0:02:21]} 15. Nxe5 {[%clk 0:02:32.6]} 15... Bxe5
{[%clk 0:02:21.1]} 16. Ne2 {[%clk 0:02:26.1]} 16... Nd7 {[%clk 0:02:20.1]} 17.
Rf3 {[%clk 0:02:23.4]} 17... Bg7 {[%clk 0:02:19.5]} 18. Raf1 {[%clk 0:01:51.1]}
18... Ne5 {[%clk 0:02:19.4]} 19. R3f2 {[%clk 0:01:51.8]} 19... b5 {[%clk
0:02:19.4]} 20. cxb5 {[%clk 0:01:38.5]} 20... axb5 {[%clk 0:02:18.7]} 21. Bxb5
{[%clk 0:01:34.3]} 21... Rxa2 {[%clk 0:02:18.4]} 22. Nc3 {[%clk 0:01:34.8]}
22... Ra8 {[%clk 0:02:17.9]} 23. Nb1 {[%clk 0:00:56]} 23... g5 {[%clk
0:02:13.5]} 24. Na3 {[%clk 0:00:53.5]} 24... g4 {[%clk 0:02:13]} 25. Kh2 {[%clk
0:00:16.3]} 25... Rb8 {[%clk 0:02:09.7]} 26. Qe2 {[%clk 0:00:08.7]} 26... Qh4
{[%clk 0:02:08.7]} 27. Nc4 {[%clk 0:00:04.1]} 27... g3+ {[%clk 0:02:08.4]} 28.
Kg1 {[%clk 0:00:03.8]} 28... gxf2+ {[%clk 0:02:09.1]} 29. Rxf2 {[%clk
0:00:02.3]} 29... Nxc4 {[%clk 0:02:09.1]} 30. Bxc4 {[%clk 0:00:03.2]} 30... Bd4
{[%clk 0:02:09.1]} 0-1

[Event "Late-Titled-Tuesday-Blitz-September-26-2023"]
[Site "Chess.com"]
[Date "2023.09.26"]
[Round "7"]
[White "nihalsarin"]
[Black "Nf3c5"]
[Result "1-0"]
[WhiteElo "3066"]
[BlackElo "2595"]
[TimeControl "180+1"]
[EndTime "15:12:38 PDT"]
[Termination "nihalsarin won by resignation"]

1. d4 {[%clk 0:03:00.9]} 1... Nf6 {[%clk 0:02:59.1]} 2. Nf3 {[%clk 0:03:01.8]}
2... e6 {[%clk 0:02:58.8]} 3. e3 {[%clk 0:03:01.4]} 3... b6 {[%clk 0:02:53]} 4.
Nbd2 {[%clk 0:03:02.1]} 4... c5 {[%clk 0:02:51.7]} 5. Bd3 {[%clk 0:03:03]} 5...
Bb7 {[%clk 0:02:51.9]} 6. O-O {[%clk 0:03:03.1]} 6... Be7 {[%clk 0:02:52.1]} 7.
b3 {[%clk 0:03:03]} 7... cxd4 {[%clk 0:02:52.3]} 8. exd4 {[%clk 0:03:03.9]} 8...
O-O {[%clk 0:02:52.3]} 9. Bb2 {[%clk 0:03:04.7]} 9... d6 {[%clk 0:02:52.5]} 10.
a3 {[%clk 0:03:05.3]} 10... Nbd7 {[%clk 0:02:52.8]} 11. c4 {[%clk 0:03:06]}
11... Re8 {[%clk 0:02:51.3]} 12. Re1 {[%clk 0:03:06.6]} 12... Bf8 {[%clk
0:02:51.5]} 13. Nf1 {[%clk 0:03:06.9]} 13... Qc7 {[%clk 0:02:52]} 14. Ng3 {[%clk
0:03:07.6]} 14... Rad8 {[%clk 0:02:51.3]} 15. Rc1 {[%clk 0:03:08.3]} 15... g6
{[%clk 0:02:50.1]} 16. d5 {[%clk 0:03:08.8]} 16... e5 {[%clk 0:02:35.4]} 17. b4
{[%clk 0:03:08.8]} 17... Qb8 {[%clk 0:02:32]} 18. h3 {[%clk 0:03:08.5]} 18...
Bh6 {[%clk 0:02:31]} 19. Rb1 {[%clk 0:03:07.3]} 19... Qa8 {[%clk 0:02:27.7]} 20.
Bc1 {[%clk 0:03:07.4]} 20... Bxc1 {[%clk 0:02:24.9]} 21. Rxc1 {[%clk 0:03:08.3]}
21... b5 {[%clk 0:02:25.3]} 22. cxb5 {[%clk 0:03:08.5]} 22... Bxd5 {[%clk
0:02:25.3]} 23. Be2 {[%clk 0:03:09.1]} 23... Nb6 {[%clk 0:02:13.6]} 24. a4
{[%clk 0:03:08.6]} 24... Nbd7 {[%clk 0:01:51.9]} 25. a5 {[%clk 0:03:08.4]} 25...
Nf8 {[%clk 0:01:51.5]} 26. Bf1 {[%clk 0:03:08.1]} 26... Ne6 {[%clk 0:01:46.6]}
27. Nd2 {[%clk 0:03:05.5]} 27... Nd4 {[%clk 0:01:45.3]} 28. Nb1 {[%clk
0:02:55.8]} 28... Qb8 {[%clk 0:01:36.3]} 29. Nc3 {[%clk 0:02:56]} 29... Ba8
{[%clk 0:01:35.7]} 30. Nge2 {[%clk 0:02:54.9]} 30... Ne6 {[%clk 0:01:33.8]} 31.
Ng3 {[%clk 0:02:51.3]} 31... Nd4 {[%clk 0:01:32.9]} 32. Nge4 {[%clk 0:02:49.6]}
32... Nh5 {[%clk 0:01:14.8]} 33. b6 {[%clk 0:02:26.5]} 33... axb6 {[%clk
0:01:12.6]} 34. a6 {[%clk 0:02:27.3]} 34... b5 {[%clk 0:01:04.8]} 35. Ra1 {[%clk
0:02:25]} 35... d5 {[%clk 0:00:56.9]} 36. Nc5 {[%clk 0:02:24.6]} 36... Qb6
{[%clk 0:00:52.1]} 37. a7 {[%clk 0:02:22.4]} 37... Bb7 {[%clk 0:00:49.4]} 38.
Ra5 {[%clk 0:02:21.8]} 38... Bc6 {[%clk 0:00:29.2]} 39. Qd2 {[%clk 0:01:59.2]}
39... Kg7 {[%clk 0:00:27.3]} 40. Rxe5 {[%clk 0:01:57.9]} 40... Rxe5 {[%clk
0:00:23.1]} 41. Qxd4 {[%clk 0:01:57.5]} 41... f6 {[%clk 0:00:22.2]} 42. Ne6+
{[%clk 0:01:57.8]} 1-0

[Event "Late-Titled-Tuesday-Blitz-September-26-2023"]
[Site "Chess.com"]
[Date "2023.09.26"]
[Round "7"]
[White "vugarrasulov"]
[Black "Njal28"]
[Result "0-1"]
[WhiteElo "2946"]
[BlackElo "3092"]
[TimeControl "180+1"]
[EndTime "15:12:42 PDT"]
[Termination "Njal28 won by resignation"]

1. d4 {[%clk 0:03:00.9]} 1... g6 {[%clk 0:02:58.6]} 2. e4 {[%clk 0:03:00.4]}
2... Bg7 {[%clk 0:02:57.7]} 3. Nf3 {[%clk 0:03:00.9]} 3... Nf6 {[%clk
0:02:57.9]} 4. e5 {[%clk 0:03:00.2]} 4... Ne4 {[%clk 0:02:58.5]} 5. Bd3 {[%clk
0:02:58.6]} 5... d5 {[%clk 0:02:58.8]} 6. O-O {[%clk 0:02:56.8]} 6... c5 {[%clk
0:02:57.8]} 7. Re1 {[%clk 0:02:43.7]} 7... cxd4 {[%clk 0:02:56.1]} 8. Nbd2
{[%clk 0:02:31.5]} 8... Nxd2 {[%clk 0:02:51.9]} 9. Qxd2 {[%clk 0:02:31.4]} 9...
Nc6 {[%clk 0:02:52.8]} 10. Qf4 {[%clk 0:02:31.4]} 10... Qc7 {[%clk 0:02:47]} 11.
Qg3 {[%clk 0:02:16.3]} 11... Be6 {[%clk 0:02:39]} 12. Bf4 {[%clk 0:02:14.7]}
12... Qd7 {[%clk 0:02:24.8]} 13. a3 {[%clk 0:02:05.7]} 13... h6 {[%clk
0:02:23.1]} 14. h4 {[%clk 0:02:04.5]} 14... a6 {[%clk 0:02:18.5]} 15. b4 {[%clk
0:02:04.4]} 15... Bf5 {[%clk 0:02:02.6]} 16. b5 {[%clk 0:02:01.9]} 16... axb5
{[%clk 0:02:00.7]} 17. Bxb5 {[%clk 0:02:02.8]} 17... O-O {[%clk 0:01:47.6]} 18.
Nxd4 {[%clk 0:01:58.9]} 18... Qc8 {[%clk 0:01:48.1]} 19. Bxc6 {[%clk 0:01:42.2]}
19... bxc6 {[%clk 0:01:48.3]} 20. h5 {[%clk 0:01:42.4]} 20... c5 {[%clk
0:01:30.9]} 21. Nf3 {[%clk 0:01:29.3]} 21... g5 {[%clk 0:01:25.9]} 22. Nxg5
{[%clk 0:01:16.7]} 22... hxg5 {[%clk 0:01:26.8]} 23. Bxg5 {[%clk 0:01:17]} 23...
Kh7 {[%clk 0:01:24]} 24. h6 {[%clk 0:01:09.5]} 24... Bh8 {[%clk 0:01:24]} 25.
Bxe7 {[%clk 0:00:59.3]} 25... Rg8 {[%clk 0:01:24.5]} 26. Qf4 {[%clk 0:00:57.7]}
26... Rg4 {[%clk 0:01:19.7]} 27. Qf3 {[%clk 0:00:57.7]} 27... Qe6 {[%clk
0:01:14]} 28. Bf6 {[%clk 0:00:57.7]} 28... Be4 {[%clk 0:00:56.2]} 0-1

[Event "Late-Titled-Tuesday-Blitz-September-26-2023"]
[Site "Chess.com"]
[Date "2023.09.26"]
[Round "7"]
[White "orestn"]
[Black "jamengrand"]
[Result "0-1"]
[WhiteElo "2411"]
[BlackElo "2277"]
[TimeControl "180+1"]
[EndTime "15:12:44 PDT"]
[Termination "jamengrand won by resignation"]

1. e4 {[%clk 0:02:53.1]} 1... e5 {[%clk 0:02:59.6]} 2. Nf3 {[%clk 0:02:52.4]}
2... Nc6 {[%clk 0:02:59.9]} 3. Bc4 {[%clk 0:02:52.2]} 3... Nf6 {[%clk
0:02:59.5]} 4. d3 {[%clk 0:02:51.7]} 4... d5 {[%clk 0:02:59.1]} 5. exd5 {[%clk
0:02:49.7]} 5... Nxd5 {[%clk 0:03:00]} 6. O-O {[%clk 0:02:48.5]} 6... Bc5 {[%clk
0:03:00]} 7. Nc3 {[%clk 0:02:41.8]} 7... Nxc3 {[%clk 0:02:59.1]} 8. bxc3 {[%clk
0:02:42.7]} 8... O-O {[%clk 0:02:57.8]} 9. Be3 {[%clk 0:02:41.4]} 9... Bxe3
{[%clk 0:02:55.4]} 10. fxe3 {[%clk 0:02:41]} 10... e4 {[%clk 0:02:55.8]} 11. Nd4
{[%clk 0:02:39.6]} 11... Ne5 {[%clk 0:02:55.1]} 12. Bb3 {[%clk 0:02:38.8]} 12...
c5 {[%clk 0:02:53.7]} 13. Nf5 {[%clk 0:02:34.9]} 13... exd3 {[%clk 0:02:48.2]}
14. cxd3 {[%clk 0:02:33.3]} 14... c4 {[%clk 0:02:32.4]} 15. dxc4 {[%clk
0:02:30.8]} 15... Bxf5 {[%clk 0:02:27.8]} 16. Rxf5 {[%clk 0:02:29.2]} 16... Qc7
{[%clk 0:02:21.6]} 17. Qd5 {[%clk 0:02:22.7]} 17... Rfe8 {[%clk 0:02:19.4]} 18.
Raf1 {[%clk 0:02:15.5]} 18... Rad8 {[%clk 0:02:15.4]} 19. Qe4 {[%clk 0:02:07.9]}
19... Qc5 {[%clk 0:02:06.9]} 20. Qxb7 {[%clk 0:02:01.3]} 20... Qxe3+ {[%clk
0:01:57.6]} 21. Kh1 {[%clk 0:02:01.1]} 21... Rd7 {[%clk 0:01:55.3]} 22. Qb5
{[%clk 0:01:56.2]} 22... Rde7 {[%clk 0:01:45]} 23. c5 {[%clk 0:01:53]} 23... g6
{[%clk 0:01:38.2]} 24. R5f2 {[%clk 0:01:46.7]} 24... Kg7 {[%clk 0:01:32.3]} 25.
h3 {[%clk 0:01:44.8]} 25... f5 {[%clk 0:01:31.6]} 26. Re2 {[%clk 0:01:32.8]}
26... Qxc3 {[%clk 0:01:26.9]} 27. Rfe1 {[%clk 0:01:29.2]} 27... Kh6 {[%clk
0:00:57.5]} 28. Re3 {[%clk 0:01:26.1]} 28... Nf3 {[%clk 0:00:50.7]} 29. Rxe7
{[%clk 0:00:53.1]} 29... Qxe1+ {[%clk 0:00:49.9]} 0-1